fUST/lending_fUST_20260318
["ID","MTS","AMOUNT","RATE_DAILY","PERIOD"]
[408529461,1773837039287,-477.283,8.273e-05,2]
[408529462,1773837039297,-808.699,8.273e-05,2]
[408529463,1773837039307,-184.448,8.273e-05,2]
[408529464,1773837039317,-10237.28381267,8.28e-05,2]
[408529465,1773837039326,-557.5788265,8.339e-05,2]
[408529466,1773837039335,-2230.315306,8.339e-05,2]
[408529467,1773837039344,-5343.88315933,8.38e-05,2]
[408529468,1773837039354,-500.0,8.423e-05,2]
[408529469,1773837039364,-321.08654877,8.423e-05,2]
[408529470,1773837039374,-500.94413369,8.423e-05,2]
[408529471,1773837039383,-500.98274519,8.423e-05,2]
[408529472,1773837039394,-501.83285828,8.423e-05,2]
[408529473,1773837039404,-500.0,8.423e-05,2]
[408529474,1773837039414,-500.35177222,8.423e-05,2]
[408529475,1773837039423,-186.91055442,8.423e-05,2]
[408529476,1773837039435,-500.0,8.423e-05,2]
[408529477,1773837039447,-500.07150662,8.423e-05,2]
[408529478,1773837039456,-500.0,8.423e-05,2]
[408529479,1773837039466,-502.12966442,8.423e-05,2]
[408529480,1773837039475,-500.0,8.423e-05,2]
[408529481,1773837039485,-500.0,8.423e-05,2]
[408529482,1773837039495,-512.34126062,8.423e-05,2]
[408529483,1773837039505,-500.55912386,8.423e-05,2]
[408529484,1773837039515,-500.0,8.423e-05,2]
[408529485,1773837039526,-500.0,8.423e-05,2]
[408529486,1773837039536,-500.0,8.423e-05,2]
[408529487,1773837039547,-704723.79841307,8.441e-05,2]
[408529488,1773837039559,-2957.94987597,8.441e-05,2]
[408529489,1773837039571,-24514.72309898,8.441e-05,2]
[408529491,1773837040866,-469.07870949,8.441e-05,2]
[408529492,1773837040879,-275.14715065,8.441e-05,2]
[408529493,1773837040890,-752.23301139,8.441e-05,2]
[408529494,1773837040902,-610.54914833,8.441e-05,2]
[408529506,1773837043763,-2581.92492425,8.441e-05,2]
[408529518,1773837046386,-7691.6046171,8.441e-05,2]
[408529519,1773837046398,-62342.12957488,8.441e-05,2]
[408529530,1773837408462,151.0,8.4e-05,120]
[408529531,1773837446964,151.0,8.4e-05,120]
[408529532,1773837477994,151.0,8.4e-05,120]
[408529554,1773838232360,-56690.04960454,7.3e-05,2]
[408529556,1773838232373,-8430.66016814,7.3e-05,2]
[408529558,1773838232386,-683.0,7.3e-05,2]
[408529561,1773838232401,-3768.584,7.3e-05,2]
[408529564,1773838232423,-2423.10000001,7.3e-05,2]
[408529566,1773838232434,-7265.70199883,7.3e-05,2]
[408529568,1773838232445,-1324.24725913,7.3e-05,2]
[408529570,1773838232456,-367.4,7.3e-05,2]
[408529572,1773838232467,-337.02992266,7.3e-05,2]
[408529574,1773838232478,-316.715,7.3e-05,2]
[408529713,1773838238439,-3838.94020047,7.3e-05,2]
[408529715,1773838238450,-97000.0,7.3e-05,2]
[408529727,1773838238554,-1407021.79044852,7.3e-05,2]
[408529729,1773838238564,-252938.73162796,7.352e-05,2]
[408529731,1773838238575,-5186.01910437,7.352e-05,2]
[408529814,1773838241008,-3488.92303573,7.352e-05,2]
[408529815,1773838241020,-1576.63586448,7.352e-05,2]
[408529849,1773838246582,-8193.27344485,7.352e-05,2]
[408529850,1773838246593,-2898.0,7.352e-05,2]
[408529851,1773838246605,-2432.0,7.352e-05,2]
[408529852,1773838246617,-2499.99770449,7.352e-05,2]
[408529870,1773838246803,-351.92062858,7.352e-05,2]
[408530142,1773838862462,-167.9524763,6.117e-05,2]
[408530143,1773838862481,-167.9524763,6.117e-05,2]
[408530144,1773838862498,-180.01484927,6.117e-05,2]
[408530171,1773839431604,-152.03267443,6.117e-05,2]
[408530172,1773839431614,-500.0,6.117e-05,2]
[408530173,1773839431623,-508.0,6.117e-05,2]
[408530174,1773839431632,-1200.0,6.165e-05,2]
[408530175,1773839431640,-809.10366437,6.166e-05,2]
[408530176,1773839431652,-5479.90857837,6.166e-05,2]
[408530177,1773839431661,-300.0,6.265e-05,2]
[408530178,1773839431670,-12339.77158804,6.266e-05,2]
[408530179,1773839431679,-678.073,6.266e-05,2]
[408530180,1773839431688,-185.47565488,6.266e-05,2]
[408530181,1773839431697,-13863.49303649,6.366e-05,2]
[408530182,1773839431709,-500.0,6.387e-05,2]
[408530183,1773839431719,-500.0,6.387e-05,2]
[408530184,1773839431728,-500.0,6.387e-05,2]
[408530185,1773839431737,-500.0,6.387e-05,2]
[408530186,1773839431747,-500.0,6.387e-05,2]
[408530187,1773839431756,-500.0,6.387e-05,2]
[408530188,1773839431766,-500.0,6.387e-05,2]
[408530189,1773839431775,-500.0,6.387e-05,2]
[408530190,1773839431784,-500.0,6.387e-05,2]
[408530191,1773839431793,-500.0,6.387e-05,2]
[408530192,1773839431802,-500.0,6.387e-05,2]
[408530193,1773839431811,-500.0,6.387e-05,2]
[408530194,1773839431820,-500.0,6.387e-05,2]
[408530195,1773839431830,-500.0,6.387e-05,2]
[408530196,1773839431839,-500.0,6.387e-05,2]
[408530198,1773839431850,-500.0,6.387e-05,2]
[408530200,1773839431859,-217.19309785,6.387e-05,2]
[408530202,1773839431869,-500.0,6.387e-05,2]
[408530204,1773839431878,-500.0,6.387e-05,2]
[408530206,1773839431888,-500.0,6.387e-05,2]
[408530208,1773839431898,-166.62922836,6.387e-05,2]
[408530210,1773839431909,-333.37077164,6.387e-05,2]
[408530212,1773839431919,-462.3157263,6.387e-05,2]
[408530400,1773839440183,-37.6842737,6.387e-05,2]
[408530401,1773839440193,-306.74809695,6.387e-05,2]
[408530426,1773839444990,-193.25190305,6.387e-05,2]
[408530428,1773839445000,-500.0,6.387e-05,2]
[408530429,1773839445010,-500.0,6.387e-05,2]
[408530431,1773839445019,-500.0,6.387e-05,2]
[408530433,1773839445029,-500.0,6.387e-05,2]
[408530434,1773839445040,-306.75220713,6.387e-05,2]
[408530515,1773839445958,-193.24779287,6.387e-05,2]
[408530517,1773839445967,-500.0,6.387e-05,2]
[408530519,1773839445976,-500.0,6.387e-05,2]
[408530520,1773839445986,-500.0,6.387e-05,2]
[408530522,1773839445995,-500.0,6.387e-05,2]
[408530524,1773839446004,-500.0,6.387e-05,2]
[408530525,1773839446014,-500.0,6.387e-05,2]
[408530526,1773839446023,-500.0,6.387e-05,2]
[408530527,1773839446033,-500.0,6.387e-05,2]
[408530529,1773839446043,-500.0,6.387e-05,2]
[408530531,1773839446053,-500.0,6.387e-05,2]
[408530533,1773839446063,-500.0,6.387e-05,2]
[408530535,1773839446072,-500.0,6.387e-05,2]
[408530537,1773839446082,-500.0,6.387e-05,2]
[408530539,1773839446092,-500.0,6.387e-05,2]
[408530541,1773839446101,-587.0916287,6.387e-05,2]
[408530543,1773839446111,-500.0,6.387e-05,2]
[408530545,1773839446120,-446.34825594,6.387e-05,2]
[408530547,1773839446131,-53.65174406,6.387e-05,2]
[408530549,1773839446140,-190.96752782,6.387e-05,2]
[408530551,1773839446150,-2645.38072812,6.387e-05,2]
[408530684,1773840631825,-297.12332852,6e-05,2]
[408530686,1773840631836,-506.0,6e-05,2]
[408530688,1773840631845,-273.33148924,6.068e-05,2]
[408530715,1773840638012,-9928.78991076,6.068e-05,2]
[408530716,1773840638022,-163.0,6.387e-05,2]
[408530717,1773840638032,-191.4187829,6.387e-05,2]
[408530718,1773840638046,-300.0,6.39e-05,2]
[408530719,1773840638055,-300.0,6.39e-05,2]
[408530720,1773840638065,-300.0,6.39e-05,2]
[408530721,1773840638078,-300.0,6.39e-05,2]
[408530722,1773840638087,-300.0,6.39e-05,2]
[408530723,1773840638096,-300.0,6.39e-05,2]
[408530724,1773840638105,-300.0,6.39e-05,2]
[408530725,1773840638113,-300.0,6.39e-05,2]
[408530726,1773840638122,-300.0,6.39e-05,2]
[408530727,1773840638131,-300.0,6.39e-05,2]
[408530728,1773840638141,-300.0,6.39e-05,2]
[408530729,1773840638153,-300.0,6.39e-05,2]
[408530730,1773840638162,-300.0,6.39e-05,2]
[408530731,1773840638171,-300.0,6.39e-05,2]
[408530732,1773840638180,-300.0,6.39e-05,2]
[408530733,1773840638190,-50000.0,6.39e-05,2]
[408530734,1773840638199,-600.0,6.492e-05,2]
[408530735,1773840638209,-181.257257,6.717e-05,2]
[408530736,1773840638218,-447.8975803,6.861e-05,2]
[408530737,1773840638228,-1989.06043641,6.861e-05,2]
[408530738,1773840638238,-224.07052513,6.861e-05,2]
[408530739,1773840638247,-181.257257,7e-05,2]
[408530740,1773840638256,-720.0,7.142e-05,2]
[408530741,1773840638266,-181.257257,7.283e-05,2]
[408530742,1773840638276,-218.58662236,7.366e-05,2]
[408530743,1773840638286,-181.257257,7.566e-05,2]
[408530744,1773840638298,-183.0,7.845e-05,2]
[408530745,1773840638308,-438.0,7.845e-05,2]
[408530746,1773840638317,-181.257257,7.848e-05,2]
[408530747,1773840638328,-864.0,7.856e-05,2]
[408530748,1773840638337,-500.0,7.912e-05,2]
[408530749,1773840638347,-500.0,7.912e-05,2]
[408530750,1773840638358,-500.0,7.912e-05,2]
[408530751,1773840638368,-500.0,7.912e-05,2]
[408530752,1773840638377,-500.0,7.912e-05,2]
[408530753,1773840638386,-500.0,7.912e-05,2]
[408530754,1773840638396,-500.0,7.912e-05,2]
[408530755,1773840638405,-416.30441002,7.912e-05,2]
[408530756,1773840638414,-500.0,7.912e-05,2]
[408530757,1773840638423,-500.0,7.912e-05,2]
[408530758,1773840638433,-500.0,7.912e-05,2]
[408530759,1773840638442,-500.0,7.912e-05,2]
[408530760,1773840638451,-500.0,7.912e-05,2]
[408530761,1773840638461,-500.0,7.912e-05,2]
[408530762,1773840638471,-500.0,7.912e-05,2]
[408530763,1773840638480,-500.0,7.912e-05,2]
[408530764,1773840638489,-500.0,7.912e-05,2]
[408530765,1773840638498,-537.6845,7.912e-05,2]
[408530766,1773840638507,-500.0,7.912e-05,2]
[408530767,1773840638516,-500.0,7.912e-05,2]
[408530768,1773840638526,-500.0,7.912e-05,2]
[408530769,1773840638535,-500.0,7.912e-05,2]
[408530770,1773840638546,-360.37754259,7.912e-05,2]
[408530771,1773840638555,-5376.845,7.912e-05,2]
[408530772,1773840638565,-2150.738,7.912e-05,2]
[408530773,1773840638574,-5376.845,7.967e-05,2]
[408530774,1773840638583,-200.0,8e-05,2]
[408530775,1773840638592,-196.1430804,8.075e-05,2]
[408530776,1773840638602,-181.257257,8.131e-05,2]
[408530777,1773840638611,-229.69506683,8.2e-05,2]
[408530778,1773840638627,-359.83098948,8.2e-05,2]
[408530779,1773840638677,-1289.70641936,8.2e-05,2]
[408530780,1773840638689,-3420.76752433,8.2e-05,2]
[408530781,1773840638698,-500.0,8.219e-05,2]
[408530782,1773840638707,-1000.0,8.3e-05,2]
[408530783,1773840638717,-102.54939242,8.389e-05,2]
[408530789,1773840640478,-500.0,6.389e-05,2]
[408530790,1773840640488,-323.99317226,8.389e-05,2]
[408530791,1773840640500,-73.45743532,8.389e-05,2]
[408530792,1773840640511,-500.0,8.389e-05,2]
[408530793,1773840640520,-500.0,8.389e-05,2]
[408530794,1773840640530,-500.0,8.389e-05,2]
[408530795,1773840640540,-500.0,8.389e-05,2]
[408530796,1773840640550,-500.0,8.389e-05,2]
[408530797,1773840640559,-500.0,8.389e-05,2]
[408530798,1773840640569,-500.0,8.389e-05,2]
[408530799,1773840640578,-500.0,8.389e-05,2]
[408530800,1773840640588,-500.0,8.389e-05,2]
[408530801,1773840640597,-500.0,8.389e-05,2]
[408530802,1773840640606,-500.0,8.389e-05,2]
[408530803,1773840640616,-500.0,8.389e-05,2]
[408530804,1773840640625,-500.0,8.389e-05,2]
[408530805,1773840640635,-315.42542852,8.389e-05,2]
[408530806,1773840640644,-500.0,8.389e-05,2]
[408530807,1773840640653,-578.59853039,8.389e-05,2]
[408530808,1773840640663,-500.0,8.389e-05,2]
[408530809,1773840640672,-500.0,8.389e-05,2]
[408530810,1773840640682,-500.0,8.389e-05,2]
[408530811,1773840640692,-500.0,8.389e-05,2]
[408530812,1773840640701,-500.0,8.389e-05,2]
[408530813,1773840640710,-75905.57365891,8.391e-05,2]
[408530814,1773840640720,-5000.0,8.4e-05,2]
[408530815,1773840640730,-15764.5947,8.4e-05,2]
[408530816,1773840640739,-219.6083569,8.423e-05,2]
[408530817,1773840640748,-349.01813565,8.423e-05,2]
[408530818,1773840640758,-218.7302933,8.423e-05,2]
[408530819,1773840640767,-501.79085466,8.423e-05,2]
[408530820,1773840640777,-500.0,8.423e-05,2]
[408530821,1773840640786,-500.0,8.423e-05,2]
[408530822,1773840640796,-500.34862467,8.423e-05,2]
[408530823,1773840640805,-500.0,8.423e-05,2]
[408530824,1773840640815,-500.0,8.423e-05,2]
[408530825,1773840640824,-500.46583056,8.423e-05,2]
[408530826,1773840640833,-500.73276349,8.423e-05,2]
[408530827,1773840640843,-500.0,8.423e-05,2]
[408530828,1773840640854,-500.0,8.423e-05,2]
[408530829,1773840640863,-501.49139279,8.423e-05,2]
[408530830,1773840640872,-500.0,8.423e-05,2]
[408530831,1773840640881,-500.0,8.423e-05,2]
[408530832,1773840640891,-500.0,8.423e-05,2]
[408530833,1773840640900,-500.08654689,8.423e-05,2]
[408530834,1773840640909,-72926.92846358,8.441e-05,2]
[408530849,1773840642965,-3232.90007557,8.441e-05,2]
[408530850,1773840643159,-2499.98689546,8.441e-05,2]
[408530859,1773840646040,-28335.33032916,8.441e-05,2]
[408530860,1773840646066,-55235.78288058,8.441e-05,2]
[408530861,1773840646115,-41404.47559574,8.441e-05,2]
[408530918,1773841832570,-509.0,6.189e-05,2]
[408530919,1773841832581,-966.53880659,6.189e-05,2]
[408530920,1773841832592,-188.82598743,6.511e-05,2]
[408530921,1773841832604,-500.0,6.511e-05,2]
[408530922,1773841832615,-498.3568372,6.511e-05,2]
[408530923,1773841832625,-500.0,6.511e-05,2]
[408530924,1773841832635,-500.0,6.511e-05,2]
[408530925,1773841832647,-500.0,6.511e-05,2]
[408530926,1773841832657,-500.0,6.511e-05,2]
[408530927,1773841832667,-500.0,6.511e-05,2]
[408530928,1773841832677,-500.0,6.511e-05,2]
[408530929,1773841832688,-500.0,6.511e-05,2]
[408530930,1773841832698,-500.0,6.511e-05,2]
[408530931,1773841832708,-551.47529902,6.511e-05,2]
[408530933,1773841832719,-608.8998408,6.511e-05,2]
[408530934,1773841832729,-605.1633971,6.512e-05,2]
[408530935,1773841832742,-638.01027,6.512e-05,2]
[408530936,1773841832753,-720.94,6.512e-05,2]
[408530955,1773841838056,-1123.47053176,6.512e-05,2]
[408530961,1773841838125,-572.260004,6.512e-05,2]
[408530973,1773841840538,-27386.9690012,6.512e-05,2]
[408530979,1773841843293,-2387.96388833,6.512e-05,2]
[408530980,1773841843304,-500.1309873,6.512e-05,2]
[408530981,1773841843430,-6542.11788176,6.512e-05,2]
[408530998,1773841846297,-1872.93,6.512e-05,2]
[408530999,1773841846309,-7650.04403855,6.512e-05,2]
[408531000,1773841846318,-300.0,6.516e-05,2]
[408531001,1773841846328,-300.0,6.516e-05,2]
[408531002,1773841846338,-300.0,6.516e-05,2]
[408531003,1773841846348,-300.0,6.516e-05,2]
[408531004,1773841846358,-300.0,6.516e-05,2]
[408531005,1773841846367,-300.0,6.516e-05,2]
[408531006,1773841846376,-300.0,6.516e-05,2]
[408531007,1773841846386,-300.0,6.516e-05,2]
[408531008,1773841846396,-300.0,6.516e-05,2]
[408531009,1773841846405,-300.0,6.516e-05,2]
[408531010,1773841846415,-300.0,6.516e-05,2]
[408531011,1773841846425,-300.0,6.516e-05,2]
[408531012,1773841846435,-300.0,6.516e-05,2]
[408531013,1773841846448,-300.0,6.516e-05,2]
[408531014,1773841846457,-300.0,6.516e-05,2]
[408531016,1773841846466,-151.055,7.881e-05,2]
[408531018,1773841846477,-2150.738,8.214e-05,2]
[408531020,1773841846487,-500.0,8.219e-05,2]
[408531022,1773841846496,-500.0,8.219e-05,2]
[408531023,1773841846505,-500.0,8.219e-05,2]
[408531024,1773841846517,-500.0,8.219e-05,2]
[408531025,1773841846528,-500.0,8.219e-05,2]
[408531026,1773841846537,-500.0,8.219e-05,2]
[408531027,1773841846547,-500.0,8.219e-05,2]
[408531028,1773841846556,-500.0,8.219e-05,2]
[408531029,1773841846565,-500.0,8.219e-05,2]
[408531030,1773841846575,-500.0,8.219e-05,2]
[408531031,1773841846584,-500.0,8.219e-05,2]
[408531032,1773841846593,-500.0,8.219e-05,2]
[408531033,1773841846605,-500.0,8.219e-05,2]
[408531034,1773841846614,-500.0,8.219e-05,2]
[408531035,1773841846625,-500.0,8.219e-05,2]
[408531036,1773841846634,-500.0,8.219e-05,2]
[408531037,1773841846643,-500.0,8.219e-05,2]
[408531038,1773841846653,-500.0,8.219e-05,2]
[408531039,1773841846663,-247.87623858,8.219e-05,2]
[408531040,1773841846673,-426.23258753,8.389e-05,2]
[408531041,1773841846683,-997.0,8.4e-05,30]
[408531042,1773841846693,-1264.94314,8.4e-05,2]
[408531043,1773841846703,-500.0,8.423e-05,2]
[408531044,1773841846714,-500.0,8.423e-05,2]
[408531045,1773841846724,-500.0,8.423e-05,2]
[408531046,1773841846733,-500.0,8.423e-05,2]
[408531047,1773841846743,-500.0,8.423e-05,2]
[408531048,1773841846753,-1629.3256592,8.424e-05,2]
[408531049,1773841846763,-606.654,8.435e-05,2]
[408531050,1773841846773,-537.6845,8.436e-05,2]
[408531051,1773841846783,-500.0,8.44e-05,2]
[408531052,1773841846793,-500.0,8.44e-05,2]
[408531053,1773841846802,-500.0,8.44e-05,2]
[408531054,1773841846812,-500.0,8.44e-05,2]
[408531055,1773841846822,-500.0,8.44e-05,2]
[408531056,1773841846831,-500.0,8.44e-05,2]
[408531057,1773841846841,-500.0,8.44e-05,2]
[408531058,1773841846851,-500.0,8.44e-05,2]
[408531059,1773841846862,-500.0,8.44e-05,2]
[408531060,1773841846871,-500.0,8.44e-05,2]
[408531061,1773841846881,-500.0,8.44e-05,2]
[408531062,1773841846891,-500.0,8.44e-05,2]
[408531063,1773841846900,-500.0,8.44e-05,2]
[408531064,1773841846910,-500.0,8.44e-05,2]
[408531065,1773841846920,-500.0,8.44e-05,2]
[408531066,1773841846929,-500.0,8.44e-05,2]
[408531067,1773841846939,-500.0,8.44e-05,2]
[408531068,1773841846948,-292.84754987,8.44e-05,2]
[408531069,1773841846958,-500.0,8.44e-05,2]
[408531070,1773841846967,-500.0,8.44e-05,2]
[408531071,1773841846977,-500.0,8.44e-05,2]
[408531072,1773841846987,-500.0,8.44e-05,2]
[408531073,1773841846997,-500.0,8.44e-05,2]
[408531074,1773841847007,-278.90868202,8.44e-05,2]
[408531075,1773841847017,-126076.60025585,8.441e-05,2]
[408531076,1773841847029,-14573.55864179,8.441e-05,2]
[408531089,1773842204962,436.54,2e-05,2]
[408531118,1773843032143,-523.0,7.27e-05,2]
[408531120,1773843032153,-167.018395,7.27e-05,2]
[408531122,1773843032163,-500.0,7.781e-05,2]
[408531124,1773843032172,-500.0,7.781e-05,2]
[408531126,1773843032181,-500.0,7.781e-05,2]
[408531128,1773843032191,-966.53880659,7.781e-05,2]
[408531130,1773843032201,-438.0,7.881e-05,2]
[408531132,1773843032210,-183.0,7.881e-05,2]
[408531134,1773843032220,-95.37146922,7.936e-05,2]
[408531136,1773843032231,-1262.73542983,7.936e-05,2]
[408531150,1773843032354,-2606.36692623,7.936e-05,2]
[408531152,1773843032364,-300.0,7.936e-05,2]
[408531154,1773843032374,-300.0,7.936e-05,2]
[408531156,1773843032384,-300.0,7.936e-05,2]
[408531158,1773843032394,-300.0,7.936e-05,2]
[408531160,1773843032403,-300.0,7.936e-05,2]
[408531162,1773843032413,-300.0,7.936e-05,2]
[408531164,1773843032422,-300.0,7.936e-05,2]
[408531166,1773843032432,-300.0,7.936e-05,2]
[408531168,1773843032441,-300.0,7.936e-05,2]
[408531170,1773843032451,-300.0,7.936e-05,2]
[408531172,1773843032460,-74.13437606,7.936e-05,2]
[408531228,1773843038372,-225.86562394,7.936e-05,2]
[408531230,1773843038382,-300.0,7.936e-05,2]
[408531231,1773843038392,-300.0,7.936e-05,2]
[408531232,1773843038402,-300.0,7.936e-05,2]
[408531233,1773843038673,-300.0,7.936e-05,2]
[408531234,1773843038683,-324.7177055,8.072e-05,2]
[408531235,1773843038693,-454.8646277,8.075e-05,2]
[408531236,1773843038702,-551.55635174,8.213e-05,2]
[408531237,1773843038712,-500.0,8.213e-05,2]
[408531238,1773843038721,-501.49139279,8.213e-05,2]
[408531239,1773843038730,-500.0,8.213e-05,2]
[408531240,1773843038739,-500.0,8.213e-05,2]
[408531241,1773843038750,-500.0,8.213e-05,2]
[408531242,1773843038762,-500.08654689,8.213e-05,2]
[408531243,1773843038771,-500.0,8.213e-05,2]
[408531244,1773843038780,-300.0,8.223e-05,2]
[408531245,1773843038791,-500.0,8.24e-05,2]
[408531246,1773843038800,-12978.64413059,8.24e-05,2]
[408531257,1773843040910,-8454.7092757,8.24e-05,2]
[408531259,1773843040927,-637.068,8.24e-05,2]
[408531329,1773843046507,-880.60659941,8.24e-05,2]
[408531330,1773843046522,-4242.87857829,8.24e-05,2]
[408531331,1773843046534,-3612.88168524,8.24e-05,2]
[408531332,1773843046545,-4361.54203922,8.24e-05,2]
[408531333,1773843046556,-1438.0,8.24e-05,2]
[408531334,1773843046568,-327870.24141439,8.24e-05,2]
[408531346,1773843618687,10000.0,2.001e-05,2]
[408531347,1773843625734,9961.0,3e-05,10]
[408531371,1773844224554,-39.0,3e-05,10]
[408531434,1773844232526,-327.0,7.715e-05,2]
[408531437,1773844232538,-202.0,7.715e-05,2]
[408531439,1773844232548,-162.1,7.715e-05,2]
[408531442,1773844232560,-20.9,7.715e-05,2]
[408531445,1773844232570,-312.515,7.715e-05,2]
[408531447,1773844232582,-125.485,7.715e-05,2]
[408531449,1773844232592,-233.32749998,7.813e-05,2]
[408531451,1773844232603,-266.67250002,7.813e-05,2]
[408531453,1773844232612,-452.32749998,7.813e-05,2]
[408531455,1773844232623,-47.67250002,7.813e-05,2]
[408531457,1773844232633,-234.0,7.838e-05,2]
[408531459,1773844232643,-300.0,7.838e-05,2]
[408531461,1773844232653,-418.0,7.838e-05,2]
[408531463,1773844232662,-71.78549998,7.839e-05,2]
[408531632,1773844238490,-9727.54,7.839e-05,2]
[408531633,1773844238602,-4035.17490071,7.839e-05,2]
[408531634,1773844238614,-4136.17019957,7.839e-05,2]
[408531682,1773844241172,-512.77059311,7.839e-05,2]
[408531695,1773844243531,-7567.26609949,7.839e-05,2]
[408531696,1773844243543,-6709.78661383,7.839e-05,2]
[408531697,1773844243555,-920.34923436,7.839e-05,2]
[408531698,1773844243684,-9848.56580408,7.839e-05,2]
[408531709,1773844246746,-9324.2403483,7.839e-05,2]
[408531710,1773844246758,-5509.11003287,7.839e-05,2]
[408531711,1773844246786,-522684.10300519,7.839e-05,2]
[408531744,1773845325819,-500.0,6.779e-05,2]
[408531745,1773845335920,-16.0,6.779e-05,2]
[408531746,1773845335944,-284.0,6.779e-05,2]
[408531788,1773845432534,-3173.83928296,6.779e-05,2]
[408531790,1773845432544,-402.50145695,6.779e-05,2]
[408531811,1773845438680,-113.49854305,6.779e-05,2]
[408531812,1773845438690,-530.0570937,6.779e-05,2]
[408531813,1773845438699,-2937.6052118,7e-05,5]
[408531814,1773845438708,-300.0,7.137e-05,2]
[408531815,1773845438717,-50000.0,7.139e-05,2]
[408531816,1773845438726,-300.0,7.139e-05,2]
[408531817,1773845438735,-300.0,7.139e-05,2]
[408531818,1773845438745,-300.0,7.139e-05,2]
[408531819,1773845438754,-300.0,7.139e-05,2]
[408531820,1773845438763,-300.0,7.139e-05,2]
[408531821,1773845438772,-300.0,7.139e-05,2]
[408531822,1773845438781,-300.0,7.139e-05,2]
[408531823,1773845438791,-300.0,7.139e-05,2]
[408531825,1773845438800,-300.0,7.139e-05,2]
[408531826,1773845438810,-300.0,7.139e-05,2]
[408531828,1773845438819,-300.0,7.139e-05,2]
[408531830,1773845438829,-300.0,7.139e-05,2]
[408531832,1773845438838,-300.0,7.139e-05,2]
[408531833,1773845438847,-300.0,7.139e-05,2]
[408531834,1773845438856,-300.0,7.139e-05,2]
[408531835,1773845438865,-1267.1711967,7.205e-05,2]
[408531836,1773845438876,-196.1382073,7.275e-05,2]
[408531837,1773845438885,-600.0,7.281e-05,2]
[408531838,1773845438895,-183.39674629,7.592e-05,2]
[408531839,1773845438904,-500.0,7.592e-05,2]
[408531840,1773845438913,-188.82598743,7.592e-05,2]
[408531841,1773845438922,-500.0,7.592e-05,2]
[408531842,1773845438931,-500.0,7.592e-05,2]
[408531843,1773845438940,-500.0,7.592e-05,2]
[408531845,1773845438950,-500.0,7.592e-05,2]
[408531847,1773845438959,-500.0,7.592e-05,2]
[408531849,1773845438968,-500.0,7.592e-05,2]
[408531850,1773845438977,-500.0,7.592e-05,2]
[408531851,1773845438987,-500.0,7.592e-05,2]
[408531852,1773845438996,-500.0,7.592e-05,2]
[408531854,1773845439005,-500.0,7.592e-05,2]
[408531856,1773845439015,-500.0,7.592e-05,2]
[408531858,1773845439024,-500.0,7.592e-05,2]
[408531860,1773845439034,-524.42540468,7.592e-05,2]
[408531862,1773845439044,-500.0,7.592e-05,2]
[408531864,1773845439053,-500.0,7.592e-05,2]
[408531865,1773845439063,-500.0,7.592e-05,2]
[408531866,1773845439072,-500.0,7.592e-05,2]
[408531867,1773845439082,-500.0,7.592e-05,2]
[408531868,1773845439091,-500.0,7.592e-05,2]
[408531869,1773845439100,-500.0,7.592e-05,2]
[408531870,1773845439109,-500.0,7.592e-05,2]
[408531871,1773845439119,-500.0,7.592e-05,2]
[408531872,1773845439128,-500.0,7.592e-05,2]
[408531873,1773845439139,-500.0,7.592e-05,2]
[408531874,1773845439149,-500.0,7.592e-05,2]
[408531875,1773845439159,-350.0,7.592e-05,2]
[408531876,1773845439168,-500.0,7.592e-05,2]
[408531877,1773845439178,-500.0,7.592e-05,2]
[408531878,1773845439187,-500.0,7.592e-05,2]
[408531879,1773845439196,-500.0,7.592e-05,2]
[408531880,1773845439206,-500.0,7.592e-05,2]
[408531881,1773845439217,-500.0,7.592e-05,2]
[408531882,1773845439228,-500.0,7.592e-05,2]
[408531883,1773845439238,-284.21379585,7.592e-05,2]
[408531884,1773845439248,-500.0,7.592e-05,2]
[408531885,1773845439258,-500.0,7.592e-05,2]
[408531886,1773845439267,-500.0,7.592e-05,2]
[408531887,1773845439277,-500.0,7.592e-05,2]
[408531888,1773845439286,-500.0,7.592e-05,2]
[408531889,1773845439295,-500.0,7.592e-05,2]
[408531890,1773845439304,-500.0,7.592e-05,2]
[408531891,1773845439314,-500.0,7.592e-05,2]
[408531892,1773845439323,-500.0,7.592e-05,2]